{"text_format":"1","workbook":"xlsx","n_sheets":2,"sheets":["Fiche","Données"],"not_rendered":{"charts":0,"images":1,"macros":1,"external_links":0,"defined_names":36,"comments":0,"pivot_tables":0},"unopened":[],"bounds":{"document_bytes":16777216,"sheet_cells":100000,"rows_first":2000,"rows_last":500,"rows_between":2000,"halvings":0,"cell_chars":16384,"cell_head_chars":4096},"cells_cut":0,"cells_raw":0,"read":"whole","date_system":"1900"}

{"sheet":"Fiche","index":0,"n_rows":121,"n_cols":18,"rows_kept":121,"cut":false,"hidden":false,"merged":[[60,3,62,7],[56,3,56,7],[42,4,42,5],[19,6,19,7],[47,3,47,4],[49,3,49,4],[51,3,51,4],[53,3,53,4],[47,6,47,7],[51,6,51,7],[4,24,4,26],[3,2,3,6],[49,6,49,7],[44,4,44,5],[1,1,1,8],[6,6,6,7],[29,3,30,7],[37,3,37,7],[10,6,10,7],[12,6,12,7],[14,6,14,7],[16,6,16,7],[21,6,21,7],[4,2,4,10]]}
[]
[null,"Fiche entreprise"]
[]
[null,null,"Consignes : \nRemplir les champs grisés puis retourner le fichier complété au format Excel par courriel à l'adresse suivante : "]
[null,null,"serviceHA@lmhabitat.fr"]
[]
[null,null,"N° de SIRET (14 caractères)",null,null,"Désignation sociale"]
[]
[]
[null,null,"Tél",null,null,"Adresse"]
[null,null,null,null,null,"Rue"]
[]
[null,null,"Fax",null,null,"Complément d'adresse"]
[]
[null,null,"Courriel entreprise",null,null,"Code postal"]
[]
[null,null,null,null,null,"Ville"]
[]
[]
[null,null,"Nom du contact",null,null,"Fonction"]
[]
[null,null,"Tél",null,null,"Fax"]
[]
[null,null,"Courriel contact"]
[]
[]
[]
[null,null,"Corps d'état 1",null,null,"Corps d'état 2"]
[]
[null,null,"Qualifications"]
[null,null,"(A séparer par un \" ; \")"]
[]
[null,null,"Effectifs"]
[]
[null,null,"Chiffre d'affaires (K€)",null,null,"Année du CA"]
[]
[null,null,"Activités spécifiques de l'entreprise"]
[]
[]
[]
[]
[null,null,"Chantiers ciblés pour lesquels l'entreprise souhaite être candidate"]
[null,null,"Logements"]
[]
[null,null,"Résidences spécialisées (RPA, foyers…)"]
[]
[null,null,"Type",null,null,"Volume"]
[null,null,"Neuf collectif",null,null,"de 1 à 20 lgts"]
[]
[null,null,"Neuf individuel",null,null,"de 21 à 40 lgts"]
[]
[null,null,"Réhabilitation",null,null,"+ de 40 lgts"]
[]
[null,null,"Maintenance / entretien"]
[]
[null,null,"Secteur géographique d'intervention dans la Metropole"]
[null,null,"(A séparer par un \" ; \")"]
[]
[]
[]
[null,null,"Commentaires"]
[]
[]
[]
[]
[]
[]
[]
[]
[]
[]
[]
[]
[]
[]
[]
[]
[]
[]
[]
[]
[]
[]
[]
[]
[]
[]
[]
[]
[]
[]
[]
[]
[]
[]
[]
[]
[]
[]
[]
[null,null,null,null,null,null,null,null,null,null,null,null,null,null,null,"corps d'état 1",null,"activité"]
[]
[null,null,null,null,null,null,null,null,null,null,null,null,null,null,null,"Appareils gaz",null,"X"]
[null,null,null,null,null,null,null,null,null,null,null,null,null,null,null,"Carrelage faience"]
[null,null,null,null,null,null,null,null,null,null,null,null,null,null,null,"Couverture Zinguerie"]
[null,null,null,null,null,null,null,null,null,null,null,null,null,null,null,"Curage Débouchage"]
[null,null,null,null,null,null,null,null,null,null,null,null,null,null,null,"Electricité Courants Faibles"]
[null,null,null,null,null,null,null,null,null,null,null,null,null,null,null,"Electricité Courants Forts"]
[null,null,null,null,null,null,null,null,null,null,null,null,null,null,null,"Enrobés VRD"]
[null,null,null,null,null,null,null,null,null,null,null,null,null,null,null,"Etanchéité"]
[null,null,null,null,null,null,null,null,null,null,null,null,null,null,null,"Maçonnerie"]
[null,null,null,null,null,null,null,null,null,null,null,null,null,null,null,"Nettoyage Débarrassage"]
[null,null,null,null,null,null,null,null,null,null,null,null,null,null,null,"Platrerie Peinture"]
[null,null,null,null,null,null,null,null,null,null,null,null,null,null,null,"Plomberie Sanitaire"]
[null,null,null,null,null,null,null,null,null,null,null,null,null,null,null,"Revêtements de sols"]
[null,null,null,null,null,null,null,null,null,null,null,null,null,null,null,"Robinetterie"]
[null,null,null,null,null,null,null,null,null,null,null,null,null,null,null,"Serrurerie Métallerie"]
[null,null,null,null,null,null,null,null,null,null,null,null,null,null,null,"Travaux Acrobatiques"]
[null,null,null,null,null,null,null,null,null,null,null,null,null,null,null,"Ventilation Fumisterie"]
[null,null,null,null,null,null,null,null,null,null,null,null,null,null,null,"Vitrerie"]
[null,null,null,null,null,null,null,null,null,null,null,null,null,null,null,"Volets Roulants"]

{"sheet":"Données","index":1,"n_rows":3,"n_cols":32,"rows_kept":3,"cut":false,"hidden":true,"merged":[[0,2,0,5],[0,0,0,1],[0,27,0,30],[0,23,0,26],[0,21,0,22],[0,6,0,8],[0,9,0,13],[0,14,0,15],[0,16,0,20]]}
["Identité",null,"adresse",null,null,null,"coordonnées",null,null,"contact",null,null,null,null,"corps d'état",null,"qualifications",null,null,null,null,"Chantiers",null,"Type",null,null,null,"Volume",null,null,null,"Commentaires"]
["Siret","Raison sociale","Rue","Cpl adresse","CP","Ville","Tel Ent","Fax ent","Courriel ent","nom contact","fonction contact","tel contact","fax contact","courriel contact","ce1","ce2","qualifications","effectifs","CA année","CA valeur","Activité","logements","résidences spécialisées","neuf col","neuf indiv","réhab","maintenance","1 à 20","21 à 40","+ de 40 lgts","Secteur géo"]
[{"$f":"siret","v":0},{"$f":"raisonsociale","v":0},{"$f":"ent_rue","v":0},{"$f":"ent_cpadresse","v":0},{"$f":"ent_cp","v":0},{"$f":"ent_ville","v":0},{"$f":"ent_tel","v":0},{"$f":"ent_fax","v":0},{"$f":"ent_courriel","v":0},{"$f":"contact","v":0},{"$f":"contact_fonction","v":0},{"$f":"contact_tel","v":0},{"$f":"contact_fax","v":0},{"$f":"contact_courriel","v":0},{"$f":"corpsetat1","v":0},{"$f":"corpsetat2","v":0},{"$f":"qualifications","v":0},{"$f":"effectif","v":0},{"$f":"CA_annee","v":0},{"$f":"CA_val","v":0},{"$f":"activités","v":0},{"$f":"chantiers_lgts","v":0},{"$f":"chantiers_resspe","v":0},{"$f":"type_neufcol","v":0},{"$f":"type_neufind","v":0},{"$f":"type_réha","v":0},{"$f":"type_maintenance","v":0},{"$f":"volume1","v":0},{"$f":"volume2","v":0},{"$f":"volume3","v":0},{"$f":"secteur","v":0},{"$f":"Fiche!D61","v":0}]